[Event "EYTCC U18 Girls 2019"]
[Site "Pardubice"]
[Date "2019.07.16"]
[Round "6.40"]
[White "Bogdanic, Katarina"]
[Black "Beliakova, Ilona"]
[Result "1-0"]
[ECO "A05"]
[WhiteElo "1955"]
[BlackElo "1759"]
[Annotator "NA"]
[PlyCount "67"]
[EventDate "2019.07.11"]
[EventType "swiss"]
[EventCountry "CZE"]
[SourceTitle "playchess.com"]
[Source "ChessBase"]
[SourceQuality "1"]
[WhiteTeam "Croatia"]
[BlackTeam "Russia"]
[WhiteTeamCountry "CRO"]
[BlackTeamCountry "RUS"]
[TimeControl "40/5400+30:1800+30"]

1. Nf3 {[%emt 0:00:00]} Nf6 {[%emt 0:00:00]} 2. c4 {[%emt 0:00:00]} e6 {[%emt 0:00:00]} 3. g3 {[%emt 0:00:13]} b6 {[%emt 0:01:06]} 4. Bg2 {[%emt 0:00:50]} Bb7 {[%emt 0:00:05]} 5. Nc3 {[%emt 0:00:45]} Be7 {[%emt 0:03:45]} 6. O-O {[%emt 0:01:40]} O-O {[%emt 0:00:42]} 7. d4 {[%emt 0:02:52]} d5 {[%emt 0:02:27]} 8. cxd5 {[%emt 0:06:46]} Nxd5 {[%emt 0:02:36]} 9. Nxd5 {[%emt 0:03:01]} Bxd5 {[%emt 0:00:18]} 10. Bf4 {[%emt 0:02:18]} Nd7 {[%emt 0:09:35]} 11. Qc2 {[%emt 0:07:27]} Bd6 {[%emt 0:04:50]} 12. e4 {[%emt 0:10:55]} Bb7 {[%emt 0:01:45]} 13. e5 {[%emt 0:03:03]} Be7 {[%emt 0:00:10]} 14. Ng5 {[%emt 0:01:59]} Bxg5 {[%emt 0:00:21]} 15. Bxb7 {[%emt 0:01:27]} Rb8 {[%emt 0:01:07]} 16. Bxg5 {[%emt 0:00:31]} Qxg5 {[%emt 0:01:09]} 17. Qxc7 {[%emt 0:00:32]} Qd8 {[%emt 0:02:18]} 18. Rac1 {[%emt 0:01:27]} Nc5 {[%emt 0:04:19]} 19. Qxd8 {[%emt 0:01:46]} Rfxd8 {[%emt 0:02:51]} 20. dxc5 {[%emt 0:00:57]} Rxb7 {[%emt 0:00:09]} 21. Rfd1 {[%emt 0:06:58]} Rxd1+ {[%emt 0:08:22]} 22. Rxd1 {[%emt 0:00:02]} Kf8 {[%emt 0:00:17]} 23. c6 {[%emt 0:01:40]} Rc7 {[%emt 0:00:08]} 24. Rd6 {[%emt 0:02:28]} g5 {[%emt 0:01:39]} 25. f4 {[%emt 0:05:21]} Kg7 {[%emt 0:03:59]} 26. Kf2 {[%emt 0:01:29]} gxf4 {[%emt 0:00:40]} 27. gxf4 {[%emt 0:00:09]} Kg6 {[%emt 0:00:08]} 28. Ke3 {[%emt 0:02:10]} h6 {[%emt 0:04:21]} 29. Ke4 {[%emt 0:02:28]} Kh5 {[%emt 0:00:22]} 30. f5 {[%emt 0:01:07]} Kg5 {[%emt 0:03:40]} 31. fxe6 {[%emt 0:04:10]} fxe6 {[%emt 0:01:13]} 32. Rxe6 {[%emt 0:00:13]} h5 {[%emt 0:00:07]} 33. Kd5 {[%emt 0:00:36]} Kf5 {[%emt 0:01:05]} 34. Rf6+ {[%emt 0:00:34] Ke4+ Kxe4} 1-0

[Event "EYTCC U18 Girls 2019"]
[Site "Pardubice"]
[Date "2019.07.16"]
[Round "6.41"]
[White "Kuhar, Larisa"]
[Black "Jaufarally, Nadia"]
[Result "1-0"]
[ECO "C68"]
[WhiteElo "1894"]
[BlackElo "1944"]
[Annotator "NA"]
[PlyCount "83"]
[EventDate "2019.07.11"]
[EventType "swiss"]
[EventCountry "CZE"]
[SourceTitle "playchess.com"]
[Source "ChessBase"]
[SourceQuality "1"]
[WhiteTeam "Slovenia"]
[BlackTeam "England"]
[WhiteTeamCountry "SLO"]
[BlackTeamCountry "ENG"]
[TimeControl "40/5400+30:1800+30"]

1. e4 {[%emt 0:00:00]} e5 {[%emt 0:00:00]} 2. Nf3 {[%emt 0:00:00]} Nc6 {[%emt 0:00:00]} 3. Bb5 {[%emt 0:00:00]} a6 {[%emt 0:00:06]} 4. Bxc6 {[%emt 0:00:06]} dxc6 {[%emt 0:00:07]} 5. O-O {[%emt 0:00:14]} Qf6 {[%emt 0:00:16]} 6. d4 {[%emt 0:01:25]} exd4 {[%emt 0:00:32]} 7. Bg5 {[%emt 0:03:40]} Qd6 {[%emt 0:00:16]} 8. Nxd4 {[%emt 0:00:55]} Bd7 {[%emt 0:00:59]} 9. Nc3 {[%emt 0:08:24]} Ne7 {[%emt 0:01:56]} 10. Be3 {[%emt 0:05:37]} O-O-O {[%emt 0:02:01]} 11. Qe2 {[%emt 0:02:44]} f5 {[%emt 0:10:34]} 12. Nb3 {[%emt 0:14:29]} fxe4 {[%emt 0:10:45]} 13. Nxe4 {[%emt 0:04:51]} Qg6 {[%emt 0:02:05]} 14. Nec5 {[%emt 0:04:43]} Bh3 {[%emt 0:04:32]} 15. Qf3 {[%emt 0:10:26]} Bg4 {[%emt 0:05:21]} 16. Qe4 {[%emt 0:06:19]} Nd5 {[%emt 0:16:54]} 17. Qxg6 {[%emt 0:02:35]} hxg6 {[%emt 0:00:08]} 18. Bg5 {[%emt 0:00:28]} Nf6 {[%emt 0:16:27]} 19. Rfe1 {[%emt 0:04:17]} Bxc5 {[%emt 0:21:07]} 20. Nxc5 {[%emt 0:00:10]} Rd5 {[%emt 0:00:21]} 21. Be3 {[%emt 0:01:36]} Bf5 {[%emt 0:00:43]} 22. c4 {[%emt 0:02:22]} Rd6 {[%emt 0:01:05]} 23. h3 {[%emt 0:02:28]} Rhd8 {[%emt 0:01:30]} 24. Rac1 {[%emt 0:02:13]} Nd7 {[%emt 0:01:33]} 25. Nb3 {[%emt 0:00:56]} Nf8 {[%emt 0:01:24]} 26. Bg5 {[%emt 0:00:17]} Rf6 {[%emt 0:00:57]} 27. g4 {[%emt 0:01:28]} Be6 {[%emt 0:00:28]} 28. Nc5 {[%emt 0:00:27]} Bf7 {[%emt 0:00:22]} 29. Bxf6 {[%emt 0:00:43]} gxf6 {[%emt 0:00:03]} 30. Re7 {[%emt 0:00:12]} Bg8 {[%emt 0:00:13]} 31. b3 {[%emt 0:00:39]} Nd7 {[%emt 0:00:30]} 32. Nxd7 {[%emt 0:00:56]} Rxd7 {[%emt 0:00:05]} 33. Re8+ {[%emt 0:00:36]} Rd8 {[%emt 0:00:04]} 34. Rce1 {[%emt 0:00:30]} Bf7 {[%emt 0:00:59]} 35. Rxd8+ {[%emt 0:01:50]} Kxd8 {[%emt 0:00:05]} 36. f4 {[%emt 0:00:19]} b5 {[%emt 0:00:15]} 37. Re4 {[%emt 0:01:11]} bxc4 {[%emt 0:00:37]} 38. bxc4 {[%emt 0:00:07]} f5 {[%emt 0:00:25]} 39. Rd4+ {[%emt 0:05:00]} Ke7 {[%emt 0:00:11]} 40. c5 {[%emt 0:01:53]} Bxa2 {[%emt 0:00:34]} 41. Ra4 {[%emt 0:30:59]} Be6 {[%emt 0:04:05]} 42. g5 {[%emt 0:00:00]} 1-0

[Event "EYTCC U18 Girls 2019"]
[Site "Pardubice"]
[Date "2019.07.16"]
[Round "6.42"]
[White "Rahulan, Thivyaa"]
[Black "Kralj, Nika"]
[Result "0-1"]
[ECO "B06"]
[WhiteElo "1878"]
[BlackElo "1807"]
[Annotator "NA"]
[PlyCount "46"]
[EventDate "2019.07.11"]
[EventType "swiss"]
[EventCountry "CZE"]
[SourceTitle "playchess.com"]
[Source "ChessBase"]
[SourceQuality "1"]
[WhiteTeam "England"]
[BlackTeam "Slovenia"]
[WhiteTeamCountry "ENG"]
[BlackTeamCountry "SLO"]
[TimeControl "40/5400+30:1800+30"]

1. e4 {[%emt 0:00:00]} d6 {[%emt 0:00:00]} 2. d4 {[%emt 0:00:00]} g6 {[%emt 0:00:00]} 3. Nc3 {[%emt 0:00:00]} Bg7 {[%emt 0:00:00]} 4. Be3 {[%emt 0:00:00]} a6 {[%emt 0:00:14]} 5. f4 {[%emt 0:01:04]} b5 {[%emt 0:00:49]} 6. Bd3 {[%emt 0:03:29]} Nf6 {[%emt 0:05:43]} 7. Qd2 {[%emt 0:05:04]} Ng4 {[%emt 0:01:39]} 8. h3 {[%emt 0:02:45]} Nxe3 {[%emt 0:00:11]} 9. Qxe3 {[%emt 0:00:08]} Nd7 {[%emt 0:03:53]} 10. Nce2 {[%emt 0:07:26]} c5 {[%emt 0:01:42]} 11. c3 {[%emt 0:00:19]} Bb7 {[%emt 0:04:02]} 12. Nf3 {[%emt 0:02:35]} Rc8 {[%emt 0:10:14]} 13. e5 {[%emt 0:09:10]} cxd4 {[%emt 0:08:53]} 14. cxd4 {[%emt 0:03:27]} Nb6 {[%emt 0:01:44]} 15. e6 {[%emt 0:13:08]} f5 {[%emt 0:07:45]} 16. Ng5 {[%emt 0:03:17]} Nd5 {[%emt 0:01:15]} 17. Qg3 {[%emt 0:04:59]} Qa5+ {[%emt 0:01:25]} 18. Kf1 {[%emt 0:02:48]} Qd2 {[%emt 0:11:12]} 19. Nxh7 {[%emt 0:07:28]} Ne3+ {[%emt 0:23:49]} 20. Kg1 {[%emt 0:08:35]} Kd8 {[%emt 0:00:07]} 21. Qxg6 {[%emt 0:05:57]} Bxd4 {[%emt 0:01:59]} 22. Nxd4 {[%emt 0:04:41]} Ng4 {[%emt 0:00:23]} 23. Rh2 {[%emt 0:00:47]} Qe3+ {[%emt 0:00:57]} 0-1

[Event "EYTCC U18 Girls 2019"]
[Site "Pardubice"]
[Date "2019.07.17"]
[Round "7.29"]
[White "Ferkova, Dominika"]
[Black "Urh, Zala"]
[Result "1-0"]
[ECO "E48"]
[WhiteElo "2009"]
[BlackElo "2072"]
[Annotator "NA"]
[PlyCount "95"]
[EventDate "2019.07.11"]
[EventType "swiss"]
[EventCountry "CZE"]
[SourceTitle "playchess.com"]
[Source "ChessBase"]
[SourceQuality "1"]
[WhiteTeam "Slovakia"]
[BlackTeam "Slovenia"]
[WhiteTeamCountry "SVK"]
[BlackTeamCountry "SLO"]
[TimeControl "40/5400+30:1800+30"]

1. d4 {[%emt 0:00:00]} Nf6 {[%emt 0:00:00]} 2. c4 {[%emt 0:00:00]} e6 {[%emt 0:00:00]} 3. Nc3 {[%emt 0:00:00]} Bb4 {[%emt 0:00:00]} 4. e3 {[%emt 0:00:00]} O-O {[%emt 0:00:06]} 5. Bd3 {[%emt 0:00:00]} d5 {[%emt 0:00:12]} 6. cxd5 {[%emt 0:00:00]} exd5 {[%emt 0:00:08]} 7. Nge2 {[%emt 0:00:08]} Re8 {[%emt 0:00:12]} 8. O-O {[%emt 0:00:43]} Bf8 {[%emt 0:04:28]} 9. Ng3 {[%emt 0:05:47]} b6 {[%emt 0:04:06]} 10. Bd2 {[%emt 0:07:29]} c5 {[%emt 0:05:17]} 11. Nce2 {[%emt 0:14:21]} Ba6 {[%emt 0:03:08]} 12. Bc3 {[%emt 0:04:07]} Bxd3 {[%emt 0:04:52]} 13. Qxd3 {[%emt 0:00:07]} Nbd7 {[%emt 0:00:06]} 14. Rae1 {[%emt 0:12:39]} c4 {[%emt 0:04:51]} 15. Qd2 {[%emt 0:06:36]} Nb8 {[%emt 0:08:48]} 16. f3 {[%emt 0:06:37]} Nc6 {[%emt 0:00:47]} 17. b4 {[%emt 0:08:50]} b5 {[%emt 0:03:00]} 18. Nf4 {[%emt 0:05:37]} a5 {[%emt 0:01:05]} 19. a3 {[%emt 0:02:14]} axb4 {[%emt 0:00:16]} 20. axb4 {[%emt 0:00:09]} Ra4 {[%emt 0:01:31]} 21. e4 {[%emt 0:07:05]} dxe4 {[%emt 0:04:21]} 22. fxe4 {[%emt 0:01:12]} Bxb4 {[%emt 0:00:32]} 23. e5 {[%emt 0:06:08]} Bxc3 {[%emt 0:02:39]} 24. Qxc3 {[%emt 0:00:10]} Nd5 {[%emt 0:00:03]} 25. Nxd5 {[%emt 0:00:26]} Qxd5 {[%emt 0:00:02]} 26. Nf5 {[%emt 0:02:06]} Re6 {[%emt 0:07:56]} 27. Qg3 {[%emt 0:08:16]} Rg6 {[%emt 0:01:07]} 28. Qf3 {[%emt 0:00:03]} Qxf3 {[%emt 0:01:04]} 29. Rxf3 {[%emt 0:00:00]} Ra2 {[%emt 0:01:09]} 30. Rf2 {[%emt 0:00:23]} Rxf2 {[%emt 0:01:32]} 31. Kxf2 {[%emt 0:00:01]} Rg5 {[%emt 0:00:01]} 32. Ne3 {[%emt 0:03:03]} Kf8 {[%emt 0:08:44]} 33. Rd1 {[%emt 0:01:23]} f6 {[%emt 0:07:52]} 34. e6 {[%emt 0:00:25]} f5 {[%emt 0:08:14]} 35. d5 {[%emt 0:00:40]} Nd8 {[%emt 0:05:27]} 36. g3 {[%emt 0:00:16]} Rh5 {[%emt 0:00:08]} 37. Kg2 {[%emt 0:00:36]} Rg5 {[%emt 0:02:14]} 38. Kf3 {[%emt 0:00:22]} Rh5 {[%emt 0:00:34]} 39. h4 {[%emt 0:00:19]} Nb7 {[%emt 0:04:52]} 40. Ra1 {[%emt 0:01:04]} Nd6 {[%emt 0:01:59]} 41. Ra8+ {[%emt 0:09:44]} Ke7 {[%emt 0:00:05]} 42. Ra7+ {[%emt 0:00:09]} Kf8 {[%emt 0:02:21]} 43. Rd7 {[%emt 0:02:40]} Ne4 {[%emt 0:02:32]} 44. d6 {[%emt 0:02:46]} Nxd6 {[%emt 0:02:57]} 45. Rxd6 {[%emt 0:00:08]} Ke7 {[%emt 0:00:03]} 46. Ra6 {[%emt 0:01:10]} f4 {[%emt 0:00:44]} 47. Kxf4 {[%emt 0:00:29]} g6 {[%emt 0:01:22]} 48. Ke4 {[%emt 0:00:12]} 1-0

[Event "EYTCC U18 Girls 2019"]
[Site "Pardubice"]
[Date "2019.07.17"]
[Round "7.30"]
[White "Hercog, Nusa"]
[Black "Sankova, Stella"]
[Result "1/2-1/2"]
[ECO "D38"]
[WhiteElo "2053"]
[BlackElo "1997"]
[Annotator "NA"]
[PlyCount "105"]
[EventDate "2019.07.11"]
[EventType "swiss"]
[EventCountry "CZE"]
[SourceTitle "playchess.com"]
[Source "ChessBase"]
[SourceQuality "1"]
[WhiteTeam "Slovenia"]
[BlackTeam "Slovakia"]
[WhiteTeamCountry "SLO"]
[BlackTeamCountry "SVK"]
[TimeControl "40/5400+30:1800+30"]

1. d4 {[%emt 0:00:00]} Nf6 {[%emt 0:00:00]} 2. c4 {[%emt 0:00:00]} e6 {[%emt 0:00:00]} 3. Nf3 {[%emt 0:00:00]} d5 {[%emt 0:00:00]} 4. Nc3 {[%emt 0:00:00]} Bb4 {[%emt 0:00:00]} 5. Qb3 {[%emt 0:00:00]} c5 {[%emt 0:00:00]} 6. dxc5 {[%emt 0:00:10]} Na6 {[%emt 0:00:07]} 7. a3 {[%emt 0:00:46]} Bxc3+ {[%emt 0:01:37]} 8. Qxc3 {[%emt 0:00:20]} Nxc5 {[%emt 0:00:38]} 9. cxd5 {[%emt 0:01:16]} Qxd5 {[%emt 0:03:35]} 10. Be3 {[%emt 0:01:59]} Nce4 {[%emt 0:02:26]} 11. Qe5 {[%emt 0:00:51]} O-O {[%emt 0:04:50]} 12. Rd1 {[%emt 0:07:22]} Qxe5 {[%emt 0:00:53]} 13. Nxe5 {[%emt 0:00:05]} Nd5 {[%emt 0:02:45]} 14. Bc1 {[%emt 0:04:30]} Nc5 {[%emt 0:11:39]} 15. f3 {[%emt 0:10:00]} f6 {[%emt 0:06:43]} 16. Nc4 {[%emt 0:17:43]} Nc7 {[%emt 0:14:14]} 17. e4 {[%emt 0:05:42]} e5 {[%emt 0:10:45]} 18. Be3 {[%emt 0:05:36]} N5e6 {[%emt 0:01:23]} 19. Nd6 {[%emt 0:03:57]} Rd8 {[%emt 0:04:56]} 20. Bc4 {[%emt 0:04:02]} b6 {[%emt 0:03:58]} 21. Kf2 {[%emt 0:02:05]} Ba6 {[%emt 0:00:38]} 22. Bb3 {[%emt 0:04:10]} Kf8 {[%emt 0:03:05]} 23. Rd2 {[%emt 0:10:39]} g6 {[%emt 0:01:17]} 24. Rhd1 {[%emt 0:01:35]} Ke7 {[%emt 0:01:01]} 25. Nc4 {[%emt 0:03:09]} Rxd2+ {[%emt 0:04:42]} 26. Rxd2 {[%emt 0:00:25]} Nb5 {[%emt 0:00:27]} 27. Ba2 {[%emt 0:01:49]} Rc8 {[%emt 0:03:22]} 28. g3 {[%emt 0:07:32]} Nbd4 {[%emt 0:04:26]} 29. Bxd4 {[%emt 0:00:24]} Bxc4 {[%emt 0:03:49]} 30. Bxc4 {[%emt 0:00:14]} Nxd4 {[%emt 0:00:26]} 31. Bd5 {[%emt 0:01:06]} Rc1 {[%emt 0:02:48]} 32. Kg2 {[%emt 0:02:56]} Kd6 {[%emt 0:00:42]} 33. Bg8 {[%emt 0:02:01]} h6 {[%emt 0:00:16]} 34. Bf7 {[%emt 0:00:34]} g5 {[%emt 0:00:13]} 35. Rf2 {[%emt 0:01:30]} Kc5 {[%emt 0:02:20]} 36. Kh3 {[%emt 0:00:18]} Kd6 {[%emt 0:04:31]} 37. Kg4 {[%emt 0:00:29]} Ke7 {[%emt 0:00:03]} 38. Bd5 {[%emt 0:00:21]} Kf8 {[%emt 0:00:22]} 39. f4 {[%emt 0:02:30]} gxf4 {[%emt 0:01:54]} 40. gxf4 {[%emt 0:00:46]} Rg1+ {[%emt 0:01:05]} 41. Kh3 {[%emt 0:05:50]} exf4 {[%emt 0:03:58]} 42. Rxf4 {[%emt 0:00:24]} Kg7 {[%emt 0:02:24]} 43. Rg4+ {[%emt 0:10:11]} Rxg4 {[%emt 0:02:03]} 44. Kxg4 {[%emt 0:00:01]} Kg6 {[%emt 0:01:05]} 45. b3 {[%emt 0:01:30]} b5 {[%emt 0:05:27]} 46. a4 {[%emt 0:02:13]} bxa4 {[%emt 0:00:47]} 47. bxa4 {[%emt 0:00:02]} Nc2 {[%emt 0:07:01]} 48. a5 {[%emt 0:05:43]} Nb4 {[%emt 0:06:05]} 49. Bb7 {[%emt 0:00:21]} Nd3 {[%emt 0:00:58]} 50. a6 {[%emt 0:00:54]} h5+ {[%emt 0:02:22]} 51. Kf3 {[%emt 0:01:11]} Kg5 {[%emt 0:00:36]} 52. Bc8 {[%emt 0:01:50]} Ne5+ {[%emt 0:03:01]} 53. Ke2 {[%emt 0:02:23]} 1/2-1/2

[Event "EYTCC U18 Girls 2019"]
[Site "Pardubice"]
[Date "2019.07.17"]
[Round "7.33"]
[White "Sahin, Hayrun Nisa"]
[Black "Koubova, Anna Marie"]
[Result "1/2-1/2"]
[ECO "B40"]
[WhiteElo "1772"]
[BlackElo "2094"]
[Annotator "NA"]
[PlyCount "65"]
[EventDate "2019.07.11"]
[EventType "swiss"]
[EventCountry "CZE"]
[SourceTitle "playchess.com"]
[Source "ChessBase"]
[SourceQuality "1"]
[WhiteTeam "Turkey"]
[BlackTeam "Czech Republic"]
[WhiteTeamCountry "TUR"]
[BlackTeamCountry "CZE"]
[TimeControl "40/5400+30:1800+30"]

1. e4 {[%emt 0:00:00]} c5 {[%emt 0:00:00]} 2. Nf3 {[%emt 0:00:00]} e6 {[%emt 0:00:00]} 3. c3 {[%emt 0:00:00]} Nf6 {[%emt 0:00:00]} 4. e5 {[%emt 0:00:00]} Nd5 {[%emt 0:00:00]} 5. d4 {[%emt 0:00:00]} cxd4 {[%emt 0:00:07]} 6. cxd4 {[%emt 0:00:00]} b6 {[%emt 0:00:09]} 7. a3 {[%emt 0:00:00]} Be7 {[%emt 0:04:06]} 8. Bd3 {[%emt 0:00:04]} Ba6 {[%emt 0:00:24]} 9. O-O {[%emt 0:00:20]} Bxd3 {[%emt 0:06:36]} 10. Qxd3 {[%emt 0:00:03]} O-O {[%emt 0:00:51]} 11. Bd2 {[%emt 0:03:08]} d6 {[%emt 0:02:25]} 12. Nc3 {[%emt 0:04:04]} Nxc3 {[%emt 0:01:23]} 13. Qxc3 {[%emt 0:02:17]} Nd7 {[%emt 0:01:25]} 14. Rac1 {[%emt 0:01:05]} Rc8 {[%emt 0:02:49]} 15. Qxc8 Qxc8 {[%emt 0:00:08]} 16. Rxc8 {[%emt 0:04:26]} Rxc8 {[%emt 0:00:06]} 17. Rc1 {[%emt 0:07:56]} Rxc1+ {[%emt 0:06:54]} 18. Bxc1 {[%emt 0:00:32]} f6 {[%emt 0:01:00]} 19. exd6 {[%emt 0:00:44]} Bxd6 {[%emt 0:00:16]} 20. Kf1 {[%emt 0:00:04]} b5 {[%emt 0:03:05]} 21. g3 {[%emt 0:04:02]} Nb6 {[%emt 0:02:45]} 22. Nd2 {[%emt 0:00:36]} Kf7 {[%emt 0:06:24]} 23. Ke2 {[%emt 0:01:08]} Ke7 {[%emt 0:06:51]} 24. Kd3 {[%emt 0:01:28]} Kd7 {[%emt 0:02:59]} 25. Ne4 {[%emt 0:09:58]} Kc6 {[%emt 0:02:49]} 26. b3 {[%emt 0:01:18]} a6 {[%emt 0:04:51]} 27. h3 {[%emt 0:05:09]} Be7 {[%emt 0:02:22]} 28. Nc3 {[%emt 0:05:23]} Nd5 {[%emt 0:00:38]} 29. Nxd5 {[%emt 0:00:53]} Kxd5 {[%emt 0:00:45]} 30. f3 {[%emt 0:01:27]} f5 {[%emt 0:09:17]} 31. a4 {[%emt 0:02:55]} bxa4 {[%emt 0:11:53]} 32. bxa4 {[%emt 0:00:05]} Bf6 {[%emt 0:00:08]} 33. Be3 {[%emt 0:00:34]} 1/2-1/2

[Event "EYTCC U18 Girls 2019"]
[Site "Pardubice"]
[Date "2019.07.17"]
[Round "7.34"]
[White "Laurincova, Kristyna"]
[Black "OZTURK, Nil"]
[Result "1-0"]
[ECO "C71"]
[WhiteElo "2010"]
[BlackElo "1345"]
[Annotator "NA"]
[PlyCount "123"]
[EventDate "2019.07.11"]
[EventType "swiss"]
[EventCountry "CZE"]
[SourceTitle "playchess.com"]
[Source "ChessBase"]
[SourceQuality "1"]
[WhiteTeam "Czech Republic"]
[WhiteTeamCountry "CZE"]
[TimeControl "40/5400+30:1800+30"]

1. e4 {[%emt 0:00:00]} e5 {[%emt 0:00:00]} 2. Nf3 {[%emt 0:01:34]} Nc6 {[%emt 0:00:00]} 3. Bb5 {[%emt 0:01:10]} a6 {[%emt 0:00:02]} 4. Ba4 {[%emt 0:00:07]} d6 {[%emt 0:00:04]} 5. h3 {[%emt 0:03:27]} Bd7 {[%emt 0:05:13]} 6. c3 {[%emt 0:02:48]} g6 {[%emt 0:00:44]} 7. O-O {[%emt 0:02:04]} Bg7 {[%emt 0:00:41]} 8. Re1 {[%emt 0:03:16]} Nge7 {[%emt 0:01:28]} 9. d4 {[%emt 0:02:28]} O-O {[%emt 0:03:40]} 10. d5 {[%emt 0:10:17]} Nb8 {[%emt 0:01:17]} 11. Bxd7 {[%emt 0:02:36]} Nxd7 {[%emt 0:00:10]} 12. a4 {[%emt 0:03:40]} h6 {[%emt 0:06:49]} 13. a5 {[%emt 0:13:57]} f5 {[%emt 0:10:39]} 14. Nbd2 {[%emt 0:01:30]} Kh7 {[%emt 0:08:55]} 15. Ra3 {[%emt 0:03:42]} f4 {[%emt 0:01:40]} 16. Nf1 {[%emt 0:03:06]} Nf6 {[%emt 0:06:04]} 17. c4 {[%emt 0:03:38]} Qd7 {[%emt 0:02:13]} 18. b4 {[%emt 0:03:29]} g5 {[%emt 0:05:20]} 19. N1h2 {[%emt 0:00:50]} Ng6 {[%emt 0:03:05]} 20. Bb2 {[%emt 0:04:34]} Rg8 {[%emt 0:09:45]} 21. Rc3 {[%emt 0:04:03]} Bf8 {[%emt 0:01:58]} 22. Kh1 {[%emt 0:00:54]} Rc8 {[%emt 0:04:57]} 23. Qc2 {[%emt 0:10:10]} Be7 {[%emt 0:03:32]} 24. c5 {[%emt 0:01:06]} Qb5 {[%emt 0:09:10]} 25. Rc4 {[%emt 0:06:32]} Rge8 {[%emt 0:05:21]} 26. Rc1 {[%emt 0:03:35]} Bf8 {[%emt 0:01:49]} 27. Ba3 {[%emt 0:02:06]} Kg8 {[%emt 0:01:47]} 28. c6 {[%emt 0:02:59]} Re7 {[%emt 0:01:33]} 29. cxb7 {[%emt 0:00:49]} Qxb7 {[%emt 0:00:03]} 30. Rc6 {[%emt 0:00:32]} Ne8 {[%emt 0:01:14]} 31. Qc4 {[%emt 0:00:59]} Ra8 {[%emt 0:00:18]} 32. Rb1 {[%emt 0:02:09]} Qb5 {[%emt 0:01:17]} 33. Qxb5 {[%emt 0:00:28]} axb5 {[%emt 0:00:01]} 34. Bb2 {[%emt 0:00:36]} Kf7 {[%emt 0:01:27]} 35. Ra1 {[%emt 0:00:05]} Rd7 {[%emt 0:00:05]} 36. a6 {[%emt 0:01:11]} Ne7 {[%emt 0:00:22]} 37. Rc3 {[%emt 0:00:14]} Nc8 {[%emt 0:00:38]} 38. Nd2 {[%emt 0:01:16]} Nb6 {[%emt 0:01:26]} 39. Ra5 {[%emt 0:00:57]} Nc8 {[%emt 0:01:16]} 40. Rca3 {[%emt 0:00:26]} Na7 {[%emt 0:00:13]} 41. Nb1 {[%emt 0:01:20]} Rdd8 {[%emt 0:00:32]} 42. Nc3 {[%emt 0:04:40]} Rdb8 {[%emt 0:02:20]} 43. Bc1 {[%emt 0:02:17]} Rb6 {[%emt 0:01:43]} 44. Bd2 {[%emt 0:00:47]} Ke7 {[%emt 0:04:07]} 45. f3 {[%emt 0:01:38]} Nf6 {[%emt 0:02:03]} 46. Be1 {[%emt 0:00:38]} c5 {[%emt 0:04:24]} 47. dxc6 {[%emt 0:01:13]} Nxc6 {[%emt 0:00:43]} 48. Rxb5 {[%emt 0:01:44]} Raxa6 {[%emt 0:01:54]} 49. Rxb6 {[%emt 0:03:10]} Rxb6 {[%emt 0:00:08]} 50. b5 {[%emt 0:02:09]} Nb8 {[%emt 0:03:07]} 51. Ra7+ {[%emt 0:02:01]} Nbd7 {[%emt 0:00:57]} 52. Ng4 {[%emt 0:01:09]} Ke8 {[%emt 0:02:55]} 53. Nxf6+ {[%emt 0:04:22]} Nxf6 {[%emt 0:00:03]} 54. Bf2 {[%emt 0:00:04]} Rb8 {[%emt 0:00:17]} 55. b6 {[%emt 0:00:41]} Be7 {[%emt 0:02:07]} 56. Nb5 {[%emt 0:01:34]} Kd8 {[%emt 0:05:33]} 57. Nc7 {[%emt 0:04:42]} Kc8 {[%emt 0:05:35]} 58. Na6 {[%emt 0:00:02]} Rb7 {[%emt 0:00:20]} 59. Ra8+ {[%emt 0:00:00]} Kd7 {[%emt 0:00:17]} 60. Nb8+ {[%emt 0:00:12]} Ke6 {[%emt 0:00:55]} 61. Nc6 {[%emt 0:00:30]} Nd7 {[%emt 0:01:03]} 62. Ra7 {[%emt 0:01:20]} 1-0

[Event "EYTCC U18 Girls 2019"]
[Site "Pardubice"]
[Date "2019.07.17"]
[Round "7.36"]
[White "Nemcova, Karin"]
[Black "Zeliantsova, Kseniya"]
[Result "1-0"]
[ECO "B03"]
[WhiteElo "1956"]
[BlackElo "1907"]
[Annotator "NA"]
[PlyCount "75"]
[EventDate "2019.07.11"]
[EventType "swiss"]
[EventCountry "CZE"]
[SourceTitle "playchess.com"]
[Source "ChessBase"]
[SourceQuality "1"]
[WhiteTeam "Czech Republic"]
[BlackTeam "Belarus"]
[WhiteTeamCountry "CZE"]
[BlackTeamCountry "BLR"]
[TimeControl "40/5400+30:1800+30"]

1. e4 {[%emt 0:00:00]} Nf6 {[%emt 0:00:00]} 2. e5 {[%emt 0:00:00]} Nd5 {[%emt 0:00:00]} 3. d4 {[%emt 0:00:05]} d6 {[%emt 0:00:00]} 4. c4 {[%emt 0:00:32]} Nb6 {[%emt 0:00:00]} 5. Nf3 {[%emt 0:00:55]} Nc6 {[%emt 0:00:06]} 6. exd6 {[%emt 0:00:17]} exd6 {[%emt 0:00:12]} 7. h3 {[%emt 0:00:49]} Bf5 {[%emt 0:02:54]} 8. Bd3 {[%emt 0:01:00]} Bxd3 {[%emt 0:01:04]} 9. Qxd3 {[%emt 0:01:37]} Be7 {[%emt 0:00:33]} 10. Bd2 {[%emt 0:03:26]} Bf6 {[%emt 0:04:49]} 11. O-O {[%emt 0:00:17]} O-O {[%emt 0:00:06]} 12. Bc3 {[%emt 0:02:19]} d5 {[%emt 0:11:46]} 13. c5 {[%emt 0:04:41]} Na4 {[%emt 0:07:18]} 14. a3 {[%emt 0:08:01]} a5 {[%emt 0:16:00]} 15. Qb5 {[%emt 0:05:15]} Nxc3 {[%emt 0:00:15]} 16. bxc3 {[%emt 0:00:20]} Qd7 {[%emt 0:01:03]} 17. a4 {[%emt 0:00:31]} b6 {[%emt 0:12:21]} 18. cxb6 {[%emt 0:04:10]} cxb6 {[%emt 0:00:06]} 19. Na3 {[%emt 0:01:02]} Rab8 {[%emt 0:07:48]} 20. Nc2 {[%emt 0:01:24]} Rfd8 {[%emt 0:01:05]} 21. Ne3 {[%emt 0:06:29]} g6 {[%emt 0:00:07]} 22. Rab1 {[%emt 0:02:09]} Qd6 {[%emt 0:06:04]} 23. Rb3 {[%emt 0:02:37]} Bg7 {[%emt 0:07:10]} 24. Rfb1 {[%emt 0:00:52]} Na7 {[%emt 0:02:56]} 25. Qa6 {[%emt 0:05:11]} Nc8 {[%emt 0:00:08]} 26. Rb5 {[%emt 0:02:47]} Qc6 {[%emt 0:08:25]} 27. Rxa5 {[%emt 0:05:08]} Bh6 {[%emt 0:05:03]} 28. Qd3 {[%emt 0:08:03]} Bxe3 {[%emt 0:03:41]} 29. Qxe3 {[%emt 0:11:06]} Re8 {[%emt 0:01:49]} 30. Qf4 {[%emt 0:00:23]} Rb7 {[%emt 0:01:18]} 31. Rab5 {[%emt 0:02:41]} Nd6 {[%emt 0:00:33]} 32. Ne5 {[%emt 0:03:36]} Qxc3 {[%emt 0:00:24]} 33. Rxd5 {[%emt 0:02:13]} Nf5 {[%emt 0:00:40]} 34. Rc1 {[%emt 0:02:39]} Qa3 {[%emt 0:00:28]} 35. Ng4 {[%emt 0:00:34]} Kg7 {[%emt 0:00:38]} 36. Rxf5 {[%emt 0:00:35]} gxf5 {[%emt 0:00:37]} 37. Qh6+ {[%emt 0:00:14]} Kh8 {[%emt 0:00:15]} 38. Nf6 {[%emt 0:01:45]} 1-0